fUST/lending_fUST_20250530
["ID","MTS","AMOUNT","RATE_DAILY","PERIOD"]
[363141225,1748597454186,-312.92834923,0.00019178,2]
[363141226,1748597454196,-430.0,0.00019178,2]
[363141227,1748597454206,-430.0,0.00019178,2]
[363141228,1748597454215,-765.31,0.00019178,2]
[363141229,1748597454224,-430.0,0.00019178,2]
[363141230,1748597454234,-535.58,0.00019178,2]
[363141231,1748597454243,-212.44666403,0.00019178,2]
[363141232,1748597454252,-1254.15,0.00019178,2]
[363141233,1748597454261,-430.0,0.00019178,2]
[363141234,1748597454272,-430.0,0.00019178,2]
[363141235,1748597454282,-2118.16,0.00019178,2]
[363141236,1748597454291,-430.0,0.00019178,2]
[363141237,1748597454301,-430.0,0.00019178,2]
[363141238,1748597454311,-884.74,0.00019178,2]
[363141239,1748597454320,-1335.72,0.00019178,2]
[363141240,1748597454330,-876.16,0.00019178,2]
[363141241,1748597454339,-430.0,0.00019178,2]
[363141242,1748597454352,-4652.73,0.00019178,2]
[363141243,1748597454362,-657.7,0.00019178,2]
[363141244,1748597454373,-430.0,0.00019178,2]
[363141245,1748597454383,-694.23,0.00019178,2]
[363141246,1748597454394,-430.0,0.00019178,2]
[363141247,1748597454403,-430.0,0.00019178,2]
[363141248,1748597454412,-430.0,0.00019178,2]
[363141249,1748597454422,-2347.29,0.00019178,2]
[363141250,1748597454432,-850.66,0.00019178,2]
[363141251,1748597454441,-430.0,0.00019178,2]
[363141252,1748597454451,-444.52,0.00019178,2]
[363141253,1748597454460,-430.0,0.00019178,2]
[363141254,1748597454469,-151.0,0.00019178,2]
[363141255,1748597454479,-430.0,0.00019178,2]
[363141256,1748597454488,-4733.35,0.00019178,2]
[363141257,1748597454498,-463.42304161,0.00019178,2]
[363141258,1748597454507,-430.0,0.00019178,2]
[363141259,1748597454516,-678.55,0.00019178,2]
[363141260,1748597454526,-759.67,0.00019178,2]
[363141261,1748597454535,-4522.58,0.00019178,2]
[363141262,1748597454545,-878.43,0.00019178,2]
[363141263,1748597454554,-430.0,0.00019178,2]
[363141264,1748597454563,-430.0,0.00019178,2]
[363141265,1748597454573,-430.0,0.00019178,2]
[363141266,1748597454583,-430.0,0.00019178,2]
[363141267,1748597454592,-430.0,0.00019178,2]
[363141268,1748597454601,-430.0,0.00019178,2]
[363141269,1748597454610,-430.0,0.00019178,2]
[363141270,1748597454620,-1570.96,0.00019178,2]
[363141271,1748597454629,-430.0,0.00019178,2]
[363141272,1748597454639,-430.0,0.00019178,2]
[363141273,1748597454648,-430.0,0.00019178,2]
[363141274,1748597454658,-430.0,0.00019178,2]
[363141275,1748597454667,-430.0,0.00019178,2]
[363141276,1748597454676,-430.0,0.00019178,2]
[363141277,1748597454687,-430.0,0.00019178,2]
[363141278,1748597454697,-430.0,0.00019178,2]
[363141279,1748597454706,-430.0,0.00019178,2]
[363141280,1748597454715,-430.0,0.00019178,2]
[363141281,1748597454724,-1491.2,0.00019178,2]
[363141282,1748597454734,-1619.76,0.00019178,2]
[363141283,1748597454743,-430.0,0.00019178,2]
[363141284,1748597454753,-430.0,0.00019178,2]
[363141285,1748597454763,-430.0,0.00019178,2]
[363141286,1748597454773,-430.0,0.00019178,2]
[363141287,1748597454783,-694.42,0.00019178,2]
[363141288,1748597454792,-430.0,0.00019178,2]
[363141289,1748597454801,-430.0,0.00019178,2]
[363141290,1748597454810,-430.0,0.00019178,2]
[363141291,1748597454820,-430.0,0.00019178,2]
[363141292,1748597454829,-430.0,0.00019178,2]
[363141293,1748597454838,-1980.76,0.00019178,2]
[363141294,1748597454847,-430.0,0.00019178,2]
[363141295,1748597454857,-430.0,0.00019178,2]
[363141296,1748597454867,-150.0,0.00019269,2]
[363141297,1748597454876,-151.0,0.00019352,2]
[363141298,1748597454885,-207.4,0.0001944,2]
[363141299,1748597454894,-1008.0,0.0001945,2]
[363141300,1748597454903,-500.0,0.00019451,2]
[363141301,1748597454912,-500.0,0.00019451,2]
[363141302,1748597454922,-500.0,0.00019451,2]
[363141303,1748597454931,-325.34383315,0.00019451,2]
[363141304,1748597454940,-500.0,0.00019451,2]
[363141305,1748597454949,-500.0,0.00019451,2]
[363141306,1748597454958,-500.0,0.00019451,2]
[363141307,1748597454967,-500.0,0.00019451,2]
[363141308,1748597454977,-500.0,0.00019451,2]
[363141309,1748597454986,-500.0,0.00019451,2]
[363141310,1748597454995,-500.0,0.00019451,2]
[363141311,1748597455004,-500.0,0.00019451,2]
[363141312,1748597455013,-181.67463516,0.00019451,2]
[363141313,1748597455022,-500.0,0.00019451,2]
[363141314,1748597455030,-500.0,0.00019451,2]
[363141315,1748597455039,-500.0,0.00019451,2]
[363141316,1748597455048,-500.0,0.00019451,2]
[363141317,1748597455057,-500.0,0.00019451,2]
[363141318,1748597455066,-500.0,0.00019451,2]
[363141319,1748597455075,-500.0,0.00019451,2]
[363141320,1748597455083,-500.0,0.00019451,2]
[363141321,1748597455092,-500.0,0.00019451,2]
[363141322,1748597455101,-109.46986587,0.00019451,2]
[363141323,1748597455270,-390.53013413,0.00019451,2]
[363141324,1748597455281,-198.81136226,0.00019451,2]
[363141325,1748597455291,-500.0,0.00019451,2]
[363141326,1748597455301,-500.0,0.00019451,2]
[363141327,1748597455311,-500.0,0.00019451,2]
[363141328,1748597455320,-63.44140361,0.00019451,2]
[363141329,1748597468094,-436.55859639,0.00019451,2]
[363141330,1748597468104,-500.0,0.00019451,2]
[363141331,1748597468114,-500.0,0.00019451,2]
[363141332,1748597468124,-430.0,0.00019452,2]
[363141333,1748597468134,-214.72553952,0.00019452,2]
[363141334,1748597468144,-430.0,0.00019452,2]
[363141335,1748597468153,-430.0,0.00019452,2]
[363141336,1748597468163,-457.7643394,0.00019452,2]
[363141337,1748597468174,-558.47,0.00019452,2]
[363141338,1748597468183,-525.61,0.00019452,2]
[363141339,1748597468193,-1509.93,0.00019452,2]
[363141340,1748597468203,-430.0,0.00019452,2]
[363141341,1748597468212,-430.0,0.00019452,2]
[363141342,1748597468222,-430.0,0.00019452,2]
[363141343,1748597468232,-430.0,0.00019452,2]
[363141344,1748597468241,-4081.65,0.00019452,2]
[363141345,1748597468251,-430.0,0.00019452,2]
[363141346,1748597468260,-1515.39,0.00019452,2]
[363141347,1748597468269,-500.0,0.00019452,2]
[363141348,1748597468278,-494.95,0.00019452,2]
[363141349,1748597468288,-433.37,0.00019452,2]
[363141350,1748597468298,-172.17559629,0.00019452,2]
[363141351,1748597468307,-430.0,0.00019452,2]
[363141352,1748597468316,-430.0,0.00019452,2]
[363141353,1748597468326,-430.0,0.00019452,2]
[363141354,1748597468336,-2148.05,0.00019452,2]
[363141355,1748597468346,-430.0,0.00019452,2]
[363141356,1748597468359,-430.0,0.00019452,2]
[363141357,1748597468369,-765.31,0.00019452,2]
[363141358,1748597468378,-430.0,0.00019452,2]
[363141359,1748597468387,-535.58,0.00019452,2]
[363141360,1748597468399,-1254.15,0.00019452,2]
[363141361,1748597468408,-430.0,0.00019452,2]
[363141362,1748597468417,-430.0,0.00019452,2]
[363141363,1748597468428,-2118.16,0.00019452,2]
[363141364,1748597468438,-430.0,0.00019452,2]
[363141365,1748597468447,-430.0,0.00019452,2]
[363141366,1748597468503,-884.74,0.00019452,2]
[363141367,1748597468513,-1335.72,0.00019452,2]
[363141368,1748597468523,-876.16,0.00019452,2]
[363141369,1748597468534,-430.0,0.00019452,2]
[363141370,1748597468543,-4652.73,0.00019452,2]
[363141371,1748597468553,-657.7,0.00019452,2]
[363141372,1748597468564,-430.0,0.00019452,2]
[363141373,1748597468575,-694.23,0.00019452,2]
[363141374,1748597468585,-430.0,0.00019452,2]
[363141375,1748597468594,-430.0,0.00019452,2]
[363141376,1748597468603,-430.0,0.00019452,2]
[363141377,1748597468613,-2347.29,0.00019452,2]
[363141378,1748597468622,-850.66,0.00019452,2]
[363141379,1748597468632,-430.0,0.00019452,2]
[363141380,1748597468642,-444.52,0.00019452,2]
[363141381,1748597468651,-562.39766593,0.00019452,2]
[363141382,1748597468660,-430.0,0.00019452,2]
[363141383,1748597468670,-4733.35,0.00019452,2]
[363141384,1748597468680,-430.0,0.00019452,2]
[363141385,1748597468689,-678.55,0.00019452,2]
[363141386,1748597468699,-759.67,0.00019452,2]
[363141387,1748597468709,-4522.58,0.00019452,2]
[363141388,1748597468718,-878.43,0.00019452,2]
[363141389,1748597468728,-430.0,0.00019452,2]
[363141390,1748597468738,-430.0,0.00019452,2]
[363141391,1748597468747,-430.0,0.00019452,2]
[363141392,1748597468757,-430.0,0.00019452,2]
[363141393,1748597468767,-430.0,0.00019452,2]
[363141394,1748597468777,-462.79877276,0.00019452,2]
[363141395,1748597468787,-430.0,0.00019452,2]
[363141396,1748597468797,-1570.96,0.00019452,2]
[363141397,1748597468807,-430.0,0.00019452,2]
[363141398,1748597468816,-430.0,0.00019452,2]
[363141399,1748597468831,-436.91088962,0.00019452,2]
[363141400,1748597468840,-430.0,0.00019452,2]
[363141401,1748597468849,-430.0,0.00019452,2]
[363141402,1748597468859,-430.0,0.00019452,2]
[363141403,1748597468869,-430.0,0.00019452,2]
[363141404,1748597468879,-430.0,0.00019452,2]
[363141405,1748597468888,-430.0,0.00019452,2]
[363141406,1748597468896,-430.0,0.00019452,2]
[363141407,1748597468906,-1491.2,0.00019452,2]
[363141408,1748597468915,-1619.76,0.00019452,2]
[363141409,1748597468924,-430.0,0.00019452,2]
[363141410,1748597468934,-430.0,0.00019452,2]
[363141411,1748597468943,-430.0,0.00019452,2]
[363141412,1748597468953,-430.0,0.00019452,2]
[363141413,1748597468963,-694.42,0.00019452,2]
[363141414,1748597468972,-430.0,0.00019452,2]
[363141415,1748597468981,-430.0,0.00019452,2]
[363141416,1748597468991,-430.0,0.00019452,2]
[363141417,1748597469000,-453.56313406,0.00019452,2]
[363141418,1748597469010,-430.0,0.00019452,2]
[363141419,1748597469020,-1980.76,0.00019452,2]
[363141420,1748597469030,-430.0,0.00019452,2]
[363141421,1748597469040,-430.0,0.00019452,2]
[363141422,1748597469049,-430.0,0.00019725,2]
[363141423,1748597469059,-430.0,0.00019725,2]
[363141424,1748597469068,-868.02,0.00019725,2]
[363141425,1748597469078,-683.15,0.00019725,2]
[363141426,1748597469087,-961.95,0.00019725,2]
[363141427,1748597469097,-430.0,0.00019725,2]
[363141428,1748597469106,-492.95,0.00019725,2]
[363141429,1748597469115,-5333.65,0.00019725,2]
[363141430,1748597469125,-430.0,0.00019725,2]
[363141431,1748597469134,-430.0,0.00019725,2]
[363141432,1748597469144,-430.0,0.00019725,2]
[363141433,1748597469153,-430.0,0.00019725,2]
[363141434,1748597469163,-430.0,0.00019726,2]
[363141435,1748597469173,-430.0,0.00019726,2]
[363141436,1748597469182,-430.0,0.00019726,2]
[363141437,1748597469191,-558.47,0.00019726,2]
[363141438,1748597469201,-525.61,0.00019726,2]
[363141439,1748597469211,-1509.93,0.00019726,2]
[363141440,1748597469220,-430.0,0.00019726,2]
[363141441,1748597469229,-430.0,0.00019726,2]
[363141442,1748597469239,-430.0,0.00019726,2]
[363141443,1748597469249,-435.07818938,0.00019726,2]
[363141444,1748597469258,-4081.65,0.00019726,2]
[363141445,1748597469268,-430.0,0.00019726,2]
[363141446,1748597469277,-1515.39,0.00019726,2]
[363141447,1748597469289,-500.0,0.00019726,2]
[363141448,1748597469301,-494.95,0.00019726,2]
[363141449,1748597469311,-433.37,0.00019726,2]
[363141450,1748597469321,-430.0,0.00019726,2]
[363141451,1748597469330,-367.45238264,0.00019726,2]
[363141452,1748597469340,-430.0,0.00019726,2]
[363141453,1748597469350,-2148.05,0.00019726,2]
[363141454,1748597469363,-430.0,0.00019726,2]
[363141455,1748597469372,-430.0,0.00019726,2]
[363141456,1748597469382,-765.31,0.00019726,2]
[363141457,1748597469391,-430.0,0.00019726,2]
[363141458,1748597469401,-535.58,0.00019726,2]
[363141459,1748597469411,-1254.15,0.00019726,2]
[363141460,1748597469421,-259.47891798,0.00019726,2]
[363141461,1748597469430,-430.0,0.00019726,2]
[363141462,1748597469442,-2118.16,0.00019726,2]
[363141463,1748597469452,-430.0,0.00019726,2]
[363141464,1748597469462,-430.0,0.00019726,2]
[363141465,1748597469471,-884.74,0.00019726,2]
[363141466,1748597469481,-1335.72,0.00019726,2]
[363141467,1748597469490,-876.16,0.00019726,2]
[363141468,1748597469499,-430.0,0.00019726,2]
[363141469,1748597469508,-4652.73,0.00019726,2]
[363141470,1748597469517,-657.7,0.00019726,2]
[363141471,1748597469527,-430.0,0.00019726,2]
[363141472,1748597469539,-694.23,0.00019726,2]
[363141473,1748597469549,-430.0,0.00019726,2]
[363141474,1748597469558,-430.0,0.00019726,2]
[363141475,1748597469568,-430.0,0.00019726,2]
[363141476,1748597469577,-2347.29,0.00019726,2]
[363141477,1748597469587,-850.66,0.00019726,2]
[363141478,1748597469596,-430.0,0.00019726,2]
[363141479,1748597469605,-444.52,0.00019726,2]
[363141480,1748597469615,-430.0,0.00019726,2]
[363141481,1748597469625,-4733.35,0.00019726,2]
[363141482,1748597469634,-430.0,0.00019726,2]
[363141483,1748597469644,-678.55,0.00019726,2]
[363141484,1748597469653,-759.67,0.00019726,2]
[363141485,1748597469662,-2013.55041103,0.00019726,2]
[363141486,1748597469874,-590.0,0.00019726,2]
[363141487,1748597470047,-1919.02958897,0.00019726,2]
[363141488,1748597470056,-878.43,0.00019726,2]
[363141489,1748597470067,-430.0,0.00019726,2]
[363141490,1748597470076,-430.0,0.00019726,2]
[363141491,1748597470086,-430.0,0.00019726,2]
[363141492,1748597470095,-430.0,0.00019726,2]
[363141493,1748597470105,-430.0,0.00019726,2]
[363141494,1748597470114,-430.0,0.00019726,2]
[363141495,1748597470124,-1570.96,0.00019726,2]
[363141496,1748597470135,-430.0,0.00019726,2]
[363141497,1748597470144,-430.0,0.00019726,2]
[363141498,1748597470153,-430.0,0.00019726,2]
[363141499,1748597470163,-430.0,0.00019726,2]
[363141500,1748597470173,-430.0,0.00019726,2]
[363141501,1748597470182,-430.0,0.00019726,2]
[363141502,1748597470192,-430.0,0.00019726,2]
[363141503,1748597470202,-430.0,0.00019726,2]
[363141504,1748597470211,-1491.2,0.00019726,2]
[363141505,1748597470220,-430.0,0.00019726,2]
[363141506,1748597470230,-1619.76,0.00019726,2]
[363141507,1748597470240,-430.0,0.00019726,2]
[363141508,1748597470249,-430.0,0.00019726,2]
[363141509,1748597470259,-430.0,0.00019726,2]
[363141510,1748597470268,-430.0,0.00019726,2]
[363141511,1748597470278,-694.42,0.00019726,2]
[363141512,1748597470288,-347.03578636,0.00019726,2]
[363141513,1748597470298,-430.0,0.00019726,2]
[363141514,1748597470307,-430.0,0.00019726,2]
[363141515,1748597470317,-1980.76,0.00019726,2]
[363141516,1748597470327,-430.0,0.00019726,2]
[363141517,1748597470336,-437.56840292,0.00019726,2]
[363141518,1748597470346,-1845.52868585,0.00019826,2]
[363141519,1748597470358,-787.428557,0.00019867,2]
[363141520,1748597470368,-500.0,0.00019973,2]
[363141521,1748597470378,-430.0,0.00019999,2]
[363141522,1748597470387,-868.02,0.00019999,2]
[363141523,1748597470398,-683.15,0.00019999,2]
[363141524,1748597470407,-961.95,0.00019999,2]
[363141525,1748597470417,-430.0,0.00019999,2]
[363141526,1748597470428,-492.95,0.00019999,2]
[363141527,1748597470439,-5333.65,0.00019999,2]
[363141528,1748597470448,-430.0,0.00019999,2]
[363141529,1748597470458,-430.0,0.00019999,2]
[363141530,1748597470469,-430.0,0.00019999,2]
[363141531,1748597470478,-430.0,0.00019999,2]
[363141532,1748597470488,-430.0,0.0002,2]
[363141533,1748597470498,-338.2707889,0.0002,2]
[363141534,1748597470647,500.0,0.00024658,120]
[363141535,1748597471870,-652.84,0.00019178,2]
[363141536,1748597471880,-652.84,0.00019452,2]
[363141537,1748597471889,-652.84,0.00019726,2]
[363141538,1748597471899,-91.7292111,0.0002,2]
[363141539,1748597471909,-430.0,0.0002,2]
[363141540,1748597471918,-558.47,0.0002,2]
[363141541,1748597471928,-525.61,0.0002,2]
[363141542,1748597471937,-1509.93,0.0002,2]
[363141543,1748597471946,-430.0,0.0002,2]
[363141544,1748597471955,-430.0,0.0002,2]
[363141545,1748597471964,-500.0,0.0002,2]
[363141546,1748597471974,-430.0,0.0002,2]
[363141547,1748597471984,-4081.65,0.0002,2]
[363141548,1748597471995,-179.02444419,0.0002,2]
[363141549,1748597472006,-1515.39,0.0002,2]
[363141550,1748597472016,-500.0,0.0002,2]
[363141551,1748597472026,-494.95,0.0002,2]
[363141552,1748597472037,-433.37,0.0002,2]
[363141553,1748597472047,-256.63146271,0.0002,2]
[363141554,1748597472497,-273.504,0.00019163,2]
[363141555,1748597472507,-173.36853729,0.0002,2]
[363141556,1748597472516,-430.0,0.0002,2]
[363141557,1748597472525,-777.38217771,0.0002,2]
[363141558,1748597472539,-1370.66782229,0.0002,2]
[363141559,1748597472548,-430.0,0.0002,2]
[363141560,1748597472558,-430.0,0.0002,2]
[363141561,1748597472568,-765.31,0.0002,2]
[363141562,1748597472578,-430.0,0.0002,2]
[363141563,1748597472587,-535.58,0.0002,2]
[363141564,1748597472597,-1254.15,0.0002,2]
[363141565,1748597472606,-430.0,0.0002,2]
[363141566,1748597472615,-2118.16,0.0002,2]
[363141567,1748597472625,-430.0,0.0002,2]
[363141568,1748597472634,-430.0,0.0002,2]
[363141569,1748597472643,-884.74,0.0002,2]
[363141570,1748597472652,-1335.72,0.0002,2]
[363141571,1748597472661,-876.16,0.0002,2]
[363141572,1748597472671,-430.0,0.0002,2]
[363141573,1748597472679,-4652.73,0.0002,2]
[363141574,1748597472689,-657.7,0.0002,2]
[363141575,1748597472698,-173.20717192,0.0002,2]
[363141576,1748597472707,-694.23,0.0002,2]
[363141577,1748597472717,-430.0,0.0002,2]
[363141578,1748597472727,-430.0,0.0002,2]
[363141579,1748597472736,-430.0,0.0002,2]
[363141580,1748597472746,-2347.29,0.0002,2]
[363141581,1748597472755,-850.66,0.0002,2]
[363141582,1748597472765,-430.0,0.0002,2]
[363141583,1748597472775,-444.52,0.0002,2]
[363141584,1748597472786,-430.0,0.0002,2]
[363141585,1748597472795,-4733.35,0.0002,2]
[363141586,1748597472804,-430.0,0.0002,2]
[363141587,1748597472813,-678.55,0.0002,2]
[363141588,1748597472822,-759.67,0.0002,2]
[363141589,1748597472832,-4522.58,0.0002,2]
[363141590,1748597472842,-878.43,0.0002,2]
[363141591,1748597472851,-430.0,0.0002,2]
[363141592,1748597472861,-430.0,0.0002,2]
[363141593,1748597472870,-430.0,0.0002,2]
[363141594,1748597472880,-430.0,0.0002,2]
[363141595,1748597472889,-430.0,0.0002,2]
[363141596,1748597472898,-430.0,0.0002,2]
[363141597,1748597472908,-1570.96,0.0002,2]
[363141598,1748597472917,-440.08219242,0.0002,2]
[363141599,1748597472926,-296.01600023,0.0002,2]
[363141600,1748597472935,-430.0,0.0002,2]
[363141601,1748597472944,-430.0,0.0002,2]
[363141602,1748597472953,-430.0,0.0002,2]
[363141603,1748597472963,-430.0,0.0002,2]
[363141604,1748597472972,-570.08743423,0.0002,2]
[363141605,1748597472982,-430.0,0.0002,2]
[363141606,1748597472991,-1491.2,0.0002,2]
[363141607,1748597473000,-430.0,0.0002,2]
[363141608,1748597473009,-1619.76,0.0002,2]
[363141609,1748597473019,-430.0,0.0002,2]
[363141610,1748597473028,-430.0,0.0002,2]
[363141611,1748597473038,-430.0,0.0002,2]
[363141612,1748597473047,-430.0,0.0002,2]
[363141613,1748597473057,-694.42,0.0002,2]
[363141614,1748597473066,-430.0,0.0002,2]
[363141615,1748597473075,-430.0,0.0002,2]
[363141616,1748597473084,-1980.76,0.0002,2]
[363141617,1748597473094,-430.0,0.0002,2]
[363141618,1748597473103,-652.84,0.0002,2]
[363141619,1748597473112,-150.0,0.00020145,2]
[363141620,1748597473121,-216.19496773,0.00020273,2]
[363141621,1748597473130,-579.82,0.00020273,2]
[363141622,1748597473140,-390.0,0.00020273,2]
[363141623,1748597473150,-430.0,0.00020273,2]
[363141624,1748597473160,-430.0,0.00020273,2]
[363141625,1748597473170,-430.0,0.00020273,2]
[363141626,1748597473179,-842.17,0.00020273,2]
[363141627,1748597473189,-313.19134292,0.00020273,2]
[363141628,1748597473198,-430.0,0.00020273,2]
[363141629,1748597473209,-430.0,0.00020273,2]
[363141630,1748597473218,-430.0,0.00020273,2]
[363141631,1748597473229,-648.24,0.00020273,2]
[363141632,1748597473239,-430.0,0.00020273,2]
[363141633,1748597473248,-430.0,0.00020273,2]
[363141634,1748597473257,-430.0,0.00020273,2]
[363141635,1748597473267,-430.0,0.00020273,2]
[363141636,1748597473276,-779.81,0.00020273,2]
[363141637,1748597473285,-2633.33,0.00020273,2]
[363141638,1748597473295,-430.0,0.00020273,2]
[363141639,1748597473304,-430.0,0.00020273,2]
[363141640,1748597473313,-430.0,0.00020273,2]
[363141641,1748597473323,-430.0,0.00020273,2]
[363141642,1748597473332,-549.84,0.00020273,2]
[363141643,1748597473342,-430.0,0.00020273,2]
[363141644,1748597473353,-830.07,0.00020273,2]
[363141645,1748597473364,-430.0,0.00020273,2]
[363141646,1748597473374,-430.0,0.00020273,2]
[363141647,1748597473383,-430.0,0.00020273,2]
[363141648,1748597473394,-430.0,0.00020273,2]
[363141649,1748597473403,-430.0,0.00020273,2]
[363141650,1748597473412,-430.0,0.00020273,2]
[363141651,1748597473422,-430.0,0.00020273,2]
[363141652,1748597473431,-558.47,0.00020273,2]
[363141653,1748597473442,-525.61,0.00020273,2]
[363141654,1748597473452,-1509.93,0.00020273,2]
[363141655,1748597473462,-430.0,0.00020273,2]
[363141656,1748597473471,-430.0,0.00020273,2]
[363141657,1748597473481,-430.0,0.00020273,2]
[363141658,1748597473490,-4081.65,0.00020273,2]
[363141659,1748597473499,-1515.39,0.00020273,2]
[363141660,1748597473508,-500.0,0.00020273,2]
[363141661,1748597473518,-494.95,0.00020273,2]
[363141662,1748597473527,-433.37,0.00020273,2]
[363141663,1748597473538,-430.0,0.00020273,2]
[363141664,1748597473547,-430.0,0.00020273,2]
[363141665,1748597473556,-430.0,0.00020273,2]
[363141666,1748597473566,-2148.05,0.00020273,2]
[363141667,1748597473575,-430.0,0.00020273,2]
[363141668,1748597473584,-430.0,0.00020273,2]
[363141669,1748597473594,-765.31,0.00020273,2]
[363141670,1748597473603,-430.0,0.00020273,2]
[363141671,1748597473613,-535.58,0.00020273,2]
[363141672,1748597473622,-1254.15,0.00020273,2]
[363141673,1748597473631,-430.0,0.00020273,2]
[363141674,1748597473640,-2118.16,0.00020273,2]
[363141675,1748597473649,-379.34380994,0.00020273,2]
[363141676,1748597473658,-500.0,0.00020273,2]
[363141677,1748597473667,-430.0,0.00020273,2]
[363141678,1748597473677,-1335.72,0.00020273,2]
[363141679,1748597473687,-876.16,0.00020273,2]
[363141680,1748597473696,-430.0,0.00020273,2]
[363141681,1748597473705,-4652.73,0.00020273,2]
[363141682,1748597473714,-884.74,0.00020273,2]
[363141683,1748597473724,-657.7,0.00020273,2]
[363141684,1748597473733,-694.23,0.00020273,2]
[363141685,1748597473742,-430.0,0.00020273,2]
[363141686,1748597473751,-430.0,0.00020273,2]
[363141687,1748597473761,-430.0,0.00020273,2]
[363141688,1748597473771,-500.0,0.00020273,2]
[363141689,1748597473780,-2347.29,0.00020273,2]
[363141690,1748597473791,-850.66,0.00020273,2]
[363141691,1748597473801,-868.02,0.00020273,2]
[363141692,1748597473810,-430.0,0.00020273,2]
[363141693,1748597473820,-444.52,0.00020273,2]
[363141694,1748597473829,-430.0,0.00020273,2]
[363141695,1748597473839,-4733.35,0.00020273,2]
[363141696,1748597473849,-430.0,0.00020273,2]
[363141697,1748597473859,-678.55,0.00020273,2]
[363141698,1748597473868,-759.67,0.00020273,2]
[363141699,1748597473879,-683.15,0.00020273,2]
[363141700,1748597473890,-4522.58,0.00020273,2]
[363141701,1748597473899,-878.43,0.00020273,2]
[363141702,1748597473909,-465.71662353,0.00020273,2]
[363141703,1748597473918,-961.95,0.00020273,2]
[363141704,1748597473928,-534.24797038,0.00020273,2]
[363141705,1748597473937,-430.0,0.00020273,2]
[363141706,1748597473947,-430.0,0.00020273,2]
[363141707,1748597473956,-505.30386907,0.00020273,2]
[363141708,1748597473966,-1570.96,0.00020273,2]
[363141709,1748597473975,-430.0,0.00020273,2]
[363141710,1748597473985,-430.0,0.00020273,2]
[363141711,1748597473995,-492.95,0.00020273,2]
[363141712,1748597474005,-430.0,0.00020273,2]
[363141713,1748597474014,-430.0,0.00020273,2]
[363141714,1748597474024,-5333.65,0.00020273,2]
[363141715,1748597474034,-430.0,0.00020273,2]
[363141716,1748597474043,-430.0,0.00020273,2]
[363141717,1748597474053,-1491.2,0.00020273,2]
[363141718,1748597474062,-430.0,0.00020273,2]
[363141719,1748597474071,-1619.76,0.00020273,2]
[363141720,1748597474081,-430.0,0.00020273,2]
[363141721,1748597474091,-430.0,0.00020273,2]
[363141722,1748597474100,-430.0,0.00020273,2]
[363141723,1748597474109,-430.0,0.00020273,2]
[363141724,1748597474118,-430.0,0.00020273,2]